fUSD/lending_fUSD_20250930
["ID","MTS","AMOUNT","RATE_DAILY","PERIOD"]
[388530633,1759234283083,-425.0,0.00019452,2]
[388530634,1759234283092,-511.00185349,0.00019452,2]
[388530635,1759234283102,-4827.63,0.00019452,2]
[388530636,1759234283112,-3470.89,0.00019452,2]
[388530637,1759234283122,-5282.87,0.00019452,2]
[388530638,1759234283131,-3373.4,0.00019452,2]
[388530639,1759234283140,-500.0,0.00019452,2]
[388530640,1759234283150,-838.99,0.00019452,2]
[388530641,1759234283160,-500.0,0.00019452,2]
[388530642,1759234283169,-310.05257804,0.00019452,2]
[388530643,1759234283178,-500.0,0.00019452,2]
[388530644,1759234283188,-500.0,0.00019452,2]
[388530645,1759234283198,-150.0,0.00019452,2]
[388530646,1759234283207,-3707.3,0.00019452,2]
[388530647,1759234283216,-2110.21,0.00019452,2]
[388530648,1759234283226,-4683.67,0.00019452,2]
[388530649,1759234283236,-623.63,0.00019452,2]
[388530650,1759234283246,-263.106623,0.00019452,2]
[388530651,1759234283255,-4715.23,0.00019452,2]
[388530652,1759234283265,-454.57103204,0.00019452,2]
[388530653,1759234283275,-1414.51,0.00019452,2]
[388530654,1759234283284,-151.0,0.00019452,2]
[388530655,1759234283297,-500.0,0.00019452,2]
[388530656,1759234283307,-1102.26,0.00019452,2]
[388530657,1759234283317,-263.106623,0.00019452,2]
[388530658,1759234283327,-161.589745,0.00019452,2]
[388530659,1759234283337,-6049.61,0.00019452,2]
[388530660,1759234283347,-4371.8,0.00019452,2]
[388530661,1759234283357,-263.106623,0.00019452,2]
[388530662,1759234283367,-771.21,0.00019452,2]
[388530663,1759234283378,-500.0,0.00019452,2]
[388530664,1759234283388,-850.17,0.00019452,2]
[388530665,1759234283398,-667.28,0.00019452,2]
[388530666,1759234283408,-21881.73,0.00019452,2]
[388530667,1759234283417,-263.106627,0.00019452,2]
[388530668,1759234283427,-500.0,0.00019452,2]
[388530669,1759234283436,-150.0,0.00019452,2]
[388530670,1759234283445,-3946.37,0.00019452,2]
[388530671,1759234283454,-486.76,0.00019452,2]
[388530672,1759234283463,-500.0,0.00019452,2]
[388530673,1759234283472,-3236.62,0.00019452,2]
[388530674,1759234283481,-884.84,0.00019452,2]
[388530675,1759234283490,-1875.42,0.00019452,2]
[388530676,1759234283500,-500.0,0.00019452,2]
[388530677,1759234283509,-500.0,0.00019452,2]
[388530678,1759234283519,-150.0,0.00019452,2]
[388530679,1759234283529,-500.0,0.00019452,2]
[388530680,1759234283539,-1091.0,0.00019452,2]
[388530681,1759234283549,-530.05,0.00019452,2]
[388530682,1759234283560,-500.0,0.00019452,2]
[388530683,1759234283570,-1333.05,0.00019452,2]
[388530684,1759234283580,-500.0,0.00019452,2]
[388530685,1759234283590,-4079.45,0.00019452,2]
[388530686,1759234283599,-2585.98,0.00019452,2]
[388530687,1759234283610,-5536.35,0.00019452,2]
[388530688,1759234283619,-500.0,0.00019452,2]
[388530689,1759234283629,-1056.77,0.00019452,2]
[388530690,1759234283639,-3722.37,0.00019452,2]
[388530691,1759234283648,-853.5,0.00019452,2]
[388530692,1759234283658,-595.71,0.00019452,2]
[388530693,1759234283667,-618.74755942,0.00019452,2]
[388530694,1759234283677,-610.86,0.00019452,2]
[388530695,1759234283687,-3447.1,0.00019452,2]
[388530696,1759234283697,-1263.4,0.00019452,2]
[388530697,1759234283710,-5491.61,0.00019452,2]
[388530698,1759234283720,-20441.84,0.00019452,2]
[388530699,1759234283729,-500.0,0.00019452,2]
[388530700,1759234283738,-500.0,0.00019452,2]
[388530701,1759234283748,-500.0,0.00019452,2]
[388530702,1759234283757,-500.0,0.00019452,2]
[388530703,1759234283767,-500.0,0.00019452,2]
[388530704,1759234283777,-500.0,0.00019452,2]
[388530705,1759234283790,-254.01632078,0.00019452,2]
[388530706,1759234283803,-1646.56,0.00019452,2]
[388530707,1759234283812,-500.0,0.00019452,2]
[388530708,1759234283822,-150.0,0.00019452,2]
[388530709,1759234283831,-500.0,0.00019452,2]
[388530710,1759234283841,-1051.09,0.00019452,2]
[388530711,1759234283851,-150.53128423,0.00019452,2]
[388530712,1759234283861,-500.0,0.00019452,2]
[388530713,1759234283871,-578.45,0.00019452,2]
[388530714,1759234283882,-274.29,0.00019452,2]
[388530715,1759234283891,-150.0,0.00019452,2]
[388530716,1759234283901,-909.9,0.00019452,2]
[388530717,1759234283911,-500.0,0.00019452,2]
[388530718,1759234283922,-654.29,0.00019452,2]
[388530719,1759234283932,-500.0,0.00019452,2]
[388530720,1759234283942,-3444.74,0.00019452,2]
[388530721,1759234283952,-4722.87,0.00019452,2]
[388530722,1759234283962,-2658.8,0.00019452,2]
[388530723,1759234283972,-18709.12,0.00019452,2]
[388530724,1759234283982,-500.0,0.00019452,2]
[388530725,1759234283992,-3134.29,0.00019452,2]
[388530726,1759234284002,-539.85440849,0.00019452,2]
[388530727,1759234284011,-2683.16,0.00019452,2]
[388530728,1759234284021,-906.72,0.00019452,2]
[388530729,1759234284029,-500.0,0.00019452,2]
[388530730,1759234284039,-939.21,0.00019452,2]
[388530731,1759234284049,-9891.35,0.00019452,2]
[388530732,1759234284058,-500.0,0.00019452,2]
[388530733,1759234284068,-547.87,0.00019452,2]
[388530734,1759234284078,-500.0,0.00019452,2]
[388530735,1759234284088,-500.0,0.00019452,2]
[388530736,1759234284097,-500.0,0.00019452,2]
[388530737,1759234284108,-1333.63,0.00019452,2]
[388530738,1759234284118,-859.44,0.00019452,2]
[388530739,1759234284128,-500.0,0.00019452,2]
[388530740,1759234284138,-2641.02,0.00019452,2]
[388530741,1759234284148,-610.88,0.00019452,2]
[388530742,1759234284158,-7857.99,0.00019452,2]
[388530743,1759234284168,-500.0,0.00019452,2]
[388530744,1759234284179,-1369.56,0.00019452,2]
[388530745,1759234284189,-500.0,0.00019452,2]
[388530746,1759234284198,-500.0,0.00019452,2]
[388530747,1759234284207,-822.88,0.00019452,2]
[388530748,1759234284217,-524.47,0.00019452,2]
[388530749,1759234284227,-500.0,0.00019452,2]
[388530750,1759234284237,-500.0,0.00019452,2]
[388530751,1759234284247,-1266.06,0.00019452,2]
[388530752,1759234284256,-500.0,0.00019452,2]
[388530753,1759234284266,-500.0,0.00019452,2]
[388530754,1759234284274,-500.0,0.00019452,2]
[388530755,1759234284284,-1660.41,0.00019452,2]
[388530756,1759234284298,-500.0,0.00019452,2]
[388530757,1759234284307,-500.0,0.00019452,2]
[388530758,1759234284318,-500.0,0.00019452,2]
[388530759,1759234284328,-500.0,0.00019452,2]
[388530760,1759234284339,-500.0,0.00019452,2]
[388530761,1759234284348,-513.53,0.00019452,2]
[388530762,1759234284358,-562.73,0.00019452,2]
[388530763,1759234284370,-6521.78,0.00019452,2]
[388530764,1759234284380,-500.0,0.00019452,2]
[388530765,1759234284390,-894.5,0.00019452,2]
[388530766,1759234284399,-6567.22,0.00019452,2]
[388530767,1759234284410,-622.53405494,0.00019452,2]
[388530768,1759234284420,-2971.04,0.00019452,2]
[388530769,1759234284430,-500.0,0.00019452,2]
[388530770,1759234284440,-4350.11,0.00019452,2]
[388530771,1759234284449,-962.91,0.00019452,2]
[388530772,1759234284460,-151.0,0.00019452,2]
[388530773,1759234284470,-6449.44,0.00019452,2]
[388530774,1759234284479,-500.0,0.00019452,2]
[388530775,1759234284489,-500.0,0.00019452,2]
[388530776,1759234284498,-2394.98,0.00019452,2]
[388530777,1759234284508,-6386.46,0.00019452,2]
[388530778,1759234284517,-500.0,0.00019452,2]
[388530779,1759234284527,-2602.936919,0.00019452,2]
[388530780,1759234284536,-596.77,0.00019452,2]
[388530781,1759234284545,-500.0,0.00019452,2]
[388530782,1759234284555,-2813.82,0.00019452,2]
[388530783,1759234284565,-3598.9,0.00019452,2]
[388530784,1759234284575,-1184.43,0.00019452,2]
[388530785,1759234284585,-1341.38,0.00019452,2]
[388530786,1759234284595,-500.0,0.00019452,2]
[388530787,1759234284604,-3705.73,0.00019452,2]
[388530788,1759234284615,-3509.89,0.00019452,2]
[388530789,1759234284624,-1011.43,0.00019452,2]
[388530790,1759234284634,-500.0,0.00019452,2]
[388530791,1759234284645,-5536.09,0.00019452,2]
[388530792,1759234284654,-2474.54,0.00019452,2]
[388530793,1759234284664,-1213.43,0.00019452,2]
[388530794,1759234284674,-5310.31,0.00019452,2]
[388530795,1759234284683,-2602.936919,0.00019452,2]
[388530796,1759234284692,-593.33,0.00019452,2]
[388530797,1759234284702,-500.0,0.00019452,2]
[388530798,1759234284711,-500.0,0.00019452,2]
[388530799,1759234284721,-500.0,0.00019452,2]
[388530800,1759234284731,-2602.936919,0.00019452,2]
[388530801,1759234284740,-500.0,0.00019452,2]
[388530802,1759234284751,-1725.05,0.00019452,2]
[388530803,1759234284762,-2602.936915,0.00019452,2]
[388530804,1759234284772,-500.0,0.00019452,2]
[388530805,1759234284781,-598.72,0.00019452,2]
[388530806,1759234284791,-500.0,0.00019452,2]
[388530807,1759234284801,-503.69,0.00019452,2]
[388530808,1759234284810,-3023.56,0.00019452,2]
[388530809,1759234284820,-500.0,0.00019452,2]
[388530810,1759234284830,-578.715792,0.00019452,2]
[388530811,1759234284840,-2513.02,0.00019452,2]
[388530812,1759234284850,-500.0,0.00019452,2]
[388530813,1759234284859,-510.0,0.00019452,2]
[388530814,1759234284869,-548.83,0.00019452,2]
[388530815,1759234284879,-2675.98,0.00019452,2]
[388530816,1759234284889,-578.715792,0.00019452,2]
[388530817,1759234284900,-7825.37,0.00019452,2]
[388530818,1759234284910,-595.52,0.00019452,2]
[388530819,1759234284920,-500.0,0.00019452,2]
[388530820,1759234284930,-578.715792,0.00019452,2]
[388530821,1759234284940,-500.0,0.00019452,2]
[388530822,1759234284950,-7012.73,0.00019452,2]
[388530823,1759234284959,-500.0,0.00019452,2]
[388530824,1759234284969,-578.715794,0.00019452,2]
[388530825,1759234284979,-500.0,0.00019452,2]
[388530826,1759234284989,-1477.53,0.00019452,2]
[388530827,1759234284999,-5157.83,0.00019452,2]
[388530828,1759234285010,-1545.87,0.00019452,2]
[388530829,1759234285020,-500.0,0.00019452,2]
[388530830,1759234285030,-3271.67,0.00019452,2]
[388530831,1759234285040,-631.55,0.00019452,2]
[388530832,1759234285050,-500.0,0.00019452,2]
[388530833,1759234285060,-500.0,0.00019452,2]
[388530834,1759234285070,-500.0,0.00019452,2]
[388530835,1759234285080,-3506.1,0.00019452,2]
[388530836,1759234285090,-500.0,0.00019452,2]
[388530837,1759234285099,-2757.17,0.00019452,2]
[388530838,1759234285109,-1844.69,0.00019452,2]
[388530839,1759234285119,-500.0,0.00019452,2]
[388530840,1759234285128,-11748.19,0.00019452,2]
[388530841,1759234285138,-1015.8,0.00019452,2]
[388530842,1759234285147,-1997.7,0.00019452,2]
[388530843,1759234285157,-500.0,0.00019452,2]
[388530844,1759234285166,-5091.6,0.00019452,2]
[388530845,1759234285176,-500.0,0.00019452,2]
[388530846,1759234285186,-500.0,0.00019452,2]
[388530847,1759234285195,-582.37,0.00019452,2]
[388530848,1759234285205,-500.0,0.00019452,2]
[388530849,1759234285215,-8103.23,0.00019452,2]
[388530850,1759234285225,-500.0,0.00019452,2]
[388530851,1759234285234,-500.0,0.00019452,2]
[388530852,1759234285244,-6256.79,0.00019452,2]
[388530853,1759234285253,-1163.65,0.00019452,2]
[388530854,1759234285263,-3256.24,0.00019452,2]
[388530855,1759234285272,-3558.87,0.00019452,2]
[388530856,1759234285282,-7346.52,0.00019452,2]
[388530857,1759234285293,-500.0,0.00019452,2]
[388530858,1759234285304,-1706.41,0.00019452,2]
[388530859,1759234285314,-1137.08,0.00019452,2]
[388530860,1759234285323,-3835.2,0.00019452,2]
[388530861,1759234285332,-500.0,0.00019452,2]
[388530862,1759234285342,-829.91,0.00019452,2]
[388530863,1759234285351,-1162.64,0.00019452,2]
[388530864,1759234285362,-747.88,0.00019452,2]
[388530865,1759234285371,-1060.34,0.00019452,2]
[388530866,1759234285381,-1368.14,0.00019452,2]
[388530867,1759234285391,-6594.09,0.00019452,2]
[388530868,1759234285400,-4671.91,0.00019452,2]
[388530869,1759234285410,-3566.48,0.00019452,2]
[388530870,1759234285420,-934.85,0.00019452,2]
[388530871,1759234285430,-234.706196,0.00019452,2]
[388530872,1759234285439,-21774.44,0.00019452,2]
[388530873,1759234285449,-500.0,0.00019452,2]
[388530874,1759234285459,-1502.82,0.00019452,2]
[388530875,1759234285468,-1774.69,0.00019452,2]
[388530876,1759234285478,-234.706196,0.00019452,2]
[388530877,1759234285487,-500.0,0.00019452,2]
[388530878,1759234285497,-500.0,0.00019452,2]
[388530879,1759234285506,-151.0,0.00019452,2]
[388530880,1759234285516,-234.706196,0.00019452,2]
[388530881,1759234285526,-151.0,0.00019452,2]
[388530882,1759234285536,-9453.01,0.00019452,2]
[388530883,1759234285545,-684.96,0.00019452,2]
[388530884,1759234285555,-151.0,0.00019452,2]
[388530885,1759234285564,-234.706204,0.00019452,2]
[388530886,1759234285574,-1028.22,0.00019452,2]
[388530887,1759234285586,-2330.68,0.00019452,2]
[388530888,1759234285597,-8789.56,0.00019452,2]
[388530889,1759234285607,-500.0,0.00019452,2]
[388530890,1759234285618,-500.0,0.00019452,2]
[388530891,1759234285628,-500.0,0.00019452,2]
[388530892,1759234285637,-985.61,0.00019452,2]
[388530893,1759234285646,-500.0,0.00019452,2]
[388530894,1759234285655,-683.13,0.00019452,2]
[388530895,1759234285665,-6951.21,0.00019452,2]
[388530896,1759234285674,-150.0,0.00019452,2]
[388530897,1759234285684,-539.83,0.00019452,2]
[388530898,1759234285693,-970.86,0.00019452,2]
[388530899,1759234285703,-150.0,0.00019452,2]
[388530900,1759234285712,-1329.97,0.00019452,2]
[388530901,1759234285721,-725.26,0.00019452,2]
[388530902,1759234285731,-500.0,0.00019452,2]
[388530903,1759234285995,-150.0,0.00019452,2]
[388530904,1759234286027,-3256.82,0.00019452,2]
[388530905,1759234286036,-2106.5,0.00019452,2]
[388530906,1759234286046,-500.0,0.00019452,2]
[388530907,1759234286056,-500.0,0.00019452,2]
[388530908,1759234286065,-4256.87,0.00019452,2]
[388530909,1759234286075,-1502.42,0.00019452,2]
[388530910,1759234286085,-2568.81,0.00019452,2]
[388530911,1759234286095,-500.0,0.00019452,2]
[388530912,1759234286104,-208.97639796,0.00019452,2]
[388530913,1759234286113,-500.0,0.00019452,2]
[388530914,1759234286123,-1323.27,0.00019452,2]
[388530915,1759234286132,-4248.48,0.00019452,2]
[388530916,1759234286143,-3448.01,0.00019452,2]
[388530917,1759234286152,-500.0,0.00019452,2]
[388530918,1759234286162,-313.11604,0.00019452,2]
[388530919,1759234286171,-4529.83,0.00019452,2]
[388530920,1759234286180,-313.11604,0.00019452,2]
[388530921,1759234286190,-151.0,0.00019452,2]
[388530922,1759234286199,-151.0,0.00019452,2]
[388530923,1759234286210,-151.0,0.00019452,2]
[388530924,1759234286219,-151.0,0.00019452,2]
[388530925,1759234286229,-594.68,0.00019452,2]
[388530926,1759234286238,-313.11604,0.00019452,2]
[388530927,1759234286248,-151.0,0.00019452,2]
[388530928,1759234286258,-151.0,0.00019452,2]
[388530929,1759234286267,-313.11604,0.00019452,2]
[388530930,1759234286277,-158.624261,0.00019452,2]
[388530931,1759234286288,-151.0,0.00019452,2]
[388530932,1759234286302,-150.0,0.00019452,2]
[388530933,1759234286311,-313.11604,0.00019452,2]
[388530934,1759234286321,-3703.32,0.00019452,2]
[388530935,1759234286334,-151.0,0.00019452,2]
[388530936,1759234286344,-313.11604,0.00019452,2]
[388530937,1759234286353,-151.0,0.00019452,2]
[388530938,1759234286365,-3340.5,0.00019452,2]
[388530939,1759234286375,-313.11604,0.00019452,2]
[388530940,1759234286386,-371.148201,0.00019452,2]
[388530941,1759234286395,-313.116035,0.00019452,2]
[388530942,1759234286406,-371.148201,0.00019452,2]
[388530943,1759234286415,-500.0,0.00019452,2]
[388530944,1759234286425,-2047.95,0.00019452,2]
[388530945,1759234286434,-371.148201,0.00019452,2]
[388530946,1759234286443,-371.148201,0.00019452,2]
[388530947,1759234286454,-2449.49,0.00019452,2]
[388530948,1759234286463,-15010.0,0.00019463,7]
[388530949,1759234286473,-480.83,0.00019464,2]
[388530950,1759234286483,-473.47,0.00019464,2]
[388530951,1759234286492,-4191.00498999,0.00019466,2]
[388530952,1759234286501,-500.0,0.00019473,2]
[388530953,1759234286512,-500.0,0.00019473,2]
[388530954,1759234286523,-500.0,0.00019473,2]
[388530955,1759234286533,-159.983392,0.00019473,2]
[388530956,1759234286543,-159.983392,0.00019473,2]
[388530957,1759234286552,-151.9842224,0.00019473,2]
[388530958,1759234286562,-159.983392,0.00019473,2]
[388530959,1759234286571,-502.33996231,0.00019473,2]
[388530960,1759234286581,-500.0,0.00019473,2]
[388530961,1759234286592,-500.0,0.00019473,2]
[388530962,1759234286601,-502.09115901,0.00019473,2]
[388530963,1759234286611,-160.14845365,0.00019473,2]
[388530964,1759234286621,-349.40738744,0.00019473,2]
[388530965,1759234286631,-500.0,0.00019473,2]
[388530966,1759234286640,-501.25175707,0.00019473,2]
[388530967,1759234286649,-500.0,0.00019473,2]
[388530968,1759234286659,-500.0,0.00019473,2]
[388530969,1759234286668,-500.66514915,0.00019473,2]
[388530970,1759234286678,-500.0,0.00019473,2]
[388530971,1759234286689,-500.0,0.00019473,2]
[388530972,1759234286698,-500.0,0.00019473,2]
[388530973,1759234286708,-500.0,0.00019473,2]
[388530974,1759234286717,-500.0,0.00019473,2]
[388530975,1759234286727,-473.55,0.00019483,2]
[388530976,1759234286736,-1247.35300236,0.00019489,2]
[388530977,1759234286746,-736.81051535,0.00019489,2]
[388530978,1759234286757,-1109.90903279,0.0001949,2]
[388530979,1759234286767,-177.6449646,0.0001949,2]
[388530980,1759234286776,-1072.28,0.00019496,2]
[388530981,1759234286786,-110622.0,0.000195,2]
[388530982,1759234286795,-281712.9576759,0.000195,2]
[388530983,1759234286804,-34629.91310583,0.000195,2]
[388530984,1759234286814,-244.87174336,0.00019507,2]
[388530985,1759234286824,-282.14,0.0001951,2]
[388530986,1759234286834,-151.0,0.00019517,2]
[388530987,1759234286843,-3395.0,0.00019518,2]
[388530988,1759234286853,-2041.0,0.00019518,2]
[388530989,1759234286863,-1000.0,0.00019528,2]
[388530990,1759234286872,-380.81345045,0.00019544,2]
[388530991,1759234286882,-244.87174336,0.00019562,2]
[388530992,1759234286892,-4506.81414635,0.00019571,2]
[388530993,1759234286902,-151.0,0.00019601,2]
[388530994,1759234286912,-2500.0,0.0001961,3]
[388530995,1759234286922,-2500.0,0.00019618,3]
[388530996,1759234286931,-1247.35300236,0.00019626,2]
[388530997,1759234286941,-1894.38277887,0.00019626,2]
[388530998,1759234286951,-610.1710437,0.00019626,2]
[388530999,1759234286960,-2500.0,0.00019627,3]
[388531000,1759234286970,-2500.0,0.00019636,3]
[388531001,1759234286979,-244.87174336,0.00019644,2]
[388531002,1759234286989,-2500.0,0.00019645,3]
[388531003,1759234286999,-2500.0,0.00019654,3]
[388531004,1759234287008,-300.0,0.00019656,2]
[388531005,1759234287018,-500.0,0.00019656,2]
[388531006,1759234287028,-558.63,0.00019656,2]
[388531007,1759234287037,-500.0,0.00019656,2]
[388531008,1759234287047,-619.36,0.00019656,2]
[388531009,1759234287056,-500.0,0.00019656,2]
[388531010,1759234287065,-500.0,0.00019656,2]
[388531011,1759234287075,-500.0,0.00019656,2]
[388531012,1759234287086,-2182.67,0.00019656,2]
[388531013,1759234287097,-2500.0,0.00019662,3]
[388531014,1759234287106,-2500.0,0.00019671,3]
[388531015,1759234287116,-2500.0,0.0001968,3]
[388531016,1759234287126,-151.0,0.00019685,2]
[388531017,1759234287136,-2500.0,0.00019689,3]
[388531018,1759234287145,-168.0,0.00019696,2]
[388531019,1759234287154,-2500.0,0.00019698,3]
[388531020,1759234287164,-214.0,0.000197,2]
[388531021,1759234287173,-3068.0,0.000197,2]
[388531022,1759234287182,-2500.0,0.00019706,3]
[388531023,1759234287192,-2500.0,0.00019715,3]
[388531024,1759234287202,-435.46714104,0.00019715,3]
[388531025,1759234287211,-300.0,0.00019718,2]
[388531026,1759234287220,-1000.0,0.00019721,2]
[388531027,1759234287230,-1000.0,0.00019721,2]
[388531028,1759234287239,-1000.0,0.00019721,2]
[388531029,1759234287248,-2500.0,0.00019724,3]
[388531030,1759234287258,-300.0,0.00019725,2]
[388531031,1759234287270,-300.0,0.00019725,2]
[388531032,1759234287279,-300.0,0.00019725,2]
[388531033,1759234287289,-16874.51839808,0.00019726,2]
[388531034,1759234287303,-150.0,0.00019726,2]
[388531035,1759234287312,-232.27373989,0.00019726,2]
[388531036,1759234287321,-150.0,0.00019726,2]
[388531037,1759234287331,-150.0,0.00019726,2]
[388531038,1759234287339,-187.88599561,0.00019726,2]
[388531039,1759234287349,-500.0,0.00019726,2]
[388531040,1759234287358,-200.0,0.00019726,2]
[388531041,1759234287367,-203.06023797,0.00019726,2]
[388531042,1759234289533,-6688.1783662,0.0001778,2]
[388531043,1759234289564,-7526.13951316,0.0001778,2]
[388531044,1759234289574,-269.46899397,0.00019178,2]
[388531045,1759234289585,-101.67920703,0.00019178,2]
[388531046,1759234289595,-151.0,0.00019178,2]
[388531047,1759234289605,-1246.03898023,0.00019178,2]
[388531048,1759234289616,-714.30823867,0.00019178,2]
[388531049,1759234289628,-916.39087904,0.00019178,2]
[388531050,1759234289644,-2514.52218297,0.00019178,2]
[388531051,1759234290393,-14214.31787936,0.00017977,2]
[388531052,1759234290403,-10100.8229978,0.00019178,2]
[388531053,1759234290414,-290.12577006,0.00019178,2]
[388531054,1759234290434,-3506.21095123,0.00019178,2]
[388531055,1759234290443,-371.148201,0.00019178,2]
[388531056,1759234290452,-151.0,0.00019178,2]
[388531057,1759234290462,-3352.3,0.00019178,2]
[388531058,1759234290471,-151.0,0.00019178,2]
[388531059,1759234290480,-151.0,0.00019178,2]
[388531060,1759234290489,-500.0,0.00019178,2]
[388531061,1759234290498,-151.0,0.00019178,2]
[388531062,1759234290508,-371.148201,0.00019178,2]
[388531063,1759234290517,-151.0,0.00019178,2]
[388531064,1759234290526,-371.148201,0.00019178,2]
[388531065,1759234290535,-151.0,0.00019178,2]
[388531066,1759234290544,-371.148201,0.00019178,2]
[388531067,1759234290553,-151.0,0.00019178,2]
[388531068,1759234290563,-500.0,0.00019178,2]
[388531069,1759234290572,-151.0,0.00019178,2]
[388531070,1759234290581,-151.0,0.00019178,2]
[388531071,1759234290592,-151.0,0.00019178,2]
[388531072,1759234290601,-151.0,0.00019178,2]
[388531073,1759234290611,-500.0,0.00019178,2]
[388531074,1759234290620,-151.0,0.00019178,2]
[388531075,1759234290629,-151.0,0.00019178,2]
[388531076,1759234290638,-1450.33,0.00019178,2]
[388531077,1759234290647,-500.0,0.00019178,2]
[388531078,1759234290657,-1574.74,0.00019178,2]
[388531079,1759234290666,-4318.47,0.00019178,2]
[388531080,1759234290677,-742.05,0.00019452,2]
[388531081,1759234290686,-354.73051315,0.00019452,2]
[388531082,1759234290699,-4387.01143307,0.00019452,2]
[388531083,1759234290719,-1998.85883626,0.00019452,2]
[388531084,1759234290730,-1744.99995,0.00019452,2]
[388531085,1759234290741,-10802.81926752,0.00019452,2]
[388531086,1759234290751,-151.0,0.00019452,2]
[388531087,1759234290760,-371.148201,0.00019452,2]
[388531088,1759234290770,-151.0,0.00019452,2]
[388531089,1759234290779,-371.148201,0.00019452,2]
[388531090,1759234290788,-3352.3,0.00019452,2]
[388531091,1759234290798,-151.0,0.00019452,2]
[388531092,1759234290807,-151.0,0.00019452,2]
[388531093,1759234290816,-151.0,0.00019452,2]
[388531094,1759234290825,-371.148201,0.00019452,2]
[388531095,1759234290834,-151.0,0.00019452,2]
[388531096,1759234290844,-371.148197,0.00019452,2]
[388531097,1759234290853,-500.0,0.00019452,2]
[388531098,1759234290862,-151.0,0.00019452,2]
[388531099,1759234290872,-500.0,0.00019452,2]
[388531100,1759234290882,-151.0,0.00019452,2]
[388531101,1759234290891,-151.0,0.00019452,2]
[388531102,1759234290900,-151.0,0.00019452,2]
[388531103,1759234290909,-1450.33,0.00019452,2]
[388531104,1759234290920,-500.0,0.00019452,2]
[388531105,1759234290929,-1574.74,0.00019452,2]
[388531106,1759234290937,-4318.47,0.00019452,2]
[388531107,1759234290946,-221.93976203,0.00019726,2]
[388531108,1759234290955,-200.0,0.00019726,2]
[388531109,1759234290964,-150.0,0.00019726,2]
[388531110,1759234290973,-500.0,0.00019726,2]
[388531111,1759234290982,-150.0,0.00019726,2]
[388531112,1759234290991,-1091.0,0.00019726,2]
[388531113,1759234290999,-500.0,0.00019726,2]
[388531114,1759234291009,-500.0,0.00019726,2]
[388531115,1759234291017,-200.0,0.00019726,2]
[388531116,1759234291026,-500.0,0.00019726,2]
[388531117,1759234291035,-500.0,0.00019726,2]
[388531118,1759234291045,-150.0,0.00019726,2]
[388531119,1759234291055,-150.0,0.00019726,2]
[388531120,1759234291064,-500.0,0.00019726,2]
[388531121,1759234291075,-500.0,0.00019726,2]
[388531122,1759234291084,-150.0,0.00019726,2]
[388531123,1759234291093,-500.0,0.00019726,2]
[388531124,1759234291103,-575.52,0.00019726,2]
[388531125,1759234291112,-1404.67,0.00019726,2]
[388531126,1759234291122,-500.0,0.00019726,2]
[388531127,1759234291131,-1530.49,0.00019726,2]
[388531128,1759234291142,-1758.48,0.00019726,2]
[388531129,1759234291151,-1777.05456022,0.00019726,2]
[388531130,1759234314254,-200.0,0.00016711,2]
[388531131,1759234317951,-200.0,0.00018173,2]
[388531132,1759234317965,-1893.31947776,0.00018173,2]